Workbook

Sheet Info
A2: Donderdag 22 December 2016 om 20:00
A4: Amerikaans Systeem, 2 partonen (kort en lang)
A6: 4 games Voorronde
A7: 1/16 Finale | C7: 1-18, | D7: 2-17, | E7: 3-16, | F7: enz. | G7: enz.
A8: 1/8 Finale | C8: 1-10 | D8: 2-9, | E8: 3-8, | F8: 4-7, | G8: 5-6.
A9: 1/4 Finale | C9: 1-6 | D9: 2-5, | E9: 3-4.
A10: Finale | C10: 1-2
A12: Inschrijfgeld € 27, 50
A14: Er wordt een bonus systeem toegepast
A15: Pasgemiddelde van:
A16: <180 | E16: 15 | F16: Bonus
A17: 180 - 189,99 | E17: 10 | F17: Bonus
A18: 190 - 199,99 | E18: 5 | F18: Bonus
A19: >200 | E19: 0 | F19: Bonus
A20: In geval van ex aequo wint de hoogste scratch score
A22: Maximaal 18 deelnemers
A24: Prijzen worden uitgekeerd in geld, waarvan de hoogte wordt bepaald naar aanleiding van het aantal deelnemers
A26: Inschrijven via Antoinette Gijzel of de Website
A36: 1 | B36: Annette Koster | H36: 10 | I36: Stephan Vrijenhoek
A37: 2 | B37: Martin Koster | H37: 11 | I37: Camil Bosman
A38: 3 | B38: Antoinette Gijzel | H38: 12 | I38: Henry van Steenis
A39: 4 | B39: Ronald Gijzel | H39: 13 | I39: Guy Janssens
A40: 5 | B40: Johan van Nispen | H40: 14 | I40: Kees Ringelberg
A41: 6 | B41: Toos van Nispen | H41: 15 | I41: Andrea Ringelberg
A42: 7 | B42: Marion de Leux | H42: 16 | I42: Paul van Herpen
A43: 8 | B43: Wilbert Anthonisse | H43: 17 | I43: Edwin van Leeuwen
A44: 9 | B44: Edwin Duinhouwer | H44: 18 | I44: Marco vd Visse
A46: Reserve
A47: 19 | B47: Ben van Denzel

Sheet Voorronde
C2: Pasgem | D2: Bonus | E2: Game 1 | F2: Game 2 | G2: Game 3 | H2: Game 4 | I2: Tot/Scr | J2: Tot/Bon. | K2: Tot/Incl
A3: 1 | B3: Henry v. Steenis | C3: 200 | D3: 0 | E3: 166 | F3: 256 | G3: 223 | H3: 213 | I3: =SUM(E3:H3) -> 858 | J3: =SUM(D3*4) -> 0 | K3: =SUM(I3:J3) -> 858
A4: 2 | B4: Antoinette Gijzel | C4: 193 | D4: 5 | E4: 218 | F4: 199 | G4: 176 | H4: 224 | I4: 817 | J4: 20 | K4: 837
A5: 3 | B5: Camil Bosman | C5: 209 | D5: 0 | E5: 215 | F5: 207 | G5: 174 | H5: 238 | I5: 834 | J5: 0 | K5: 834
A6: 4 | B6: Ronald Gijzel | C6: 170 | D6: 15 | E6: 138 | F6: 201 | G6: 268 | H6: 157 | I6: 764 | J6: 60 | K6: 824
A7: 5 | B7: Kees Ringelberg | C7: 187 | D7: 10 | E7: 201 | F7: 201 | G7: 176 | H7: 201 | I7: 779 | J7: 40 | K7: 819
A8: 6 | B8: Johan van Nispen | C8: 180 | D8: 10 | E8: 150 | F8: 164 | G8: 205 | H8: 231 | I8: 750 | J8: 40 | K8: 790
A9: 7 | B9: Stephan Vrijenhoek | C9: 203 | D9: 0 | E9: 215 | F9: 191 | G9: 192 | H9: 164 | I9: 762 | J9: 0 | K9: 762
A10: 8 | B10: Guy Janssens | C10: 201 | D10: 0 | E10: 213 | F10: 225 | G10: 164 | H10: 148 | I10: 750 | J10: 0 | K10: 750
A11: 9 | B11: Paul van Herpen | C11: 147 | D11: 15 | E11: 179 | F11: 156 | G11: 187 | H11: 159 | I11: 681 | J11: 60 | K11: 741
A12: 10 | B12: Edwin Duinhouwer | C12: 162 | D12: 15 | E12: 166 | F12: 142 | G12: 180 | H12: 170 | I12: 658 | J12: 60 | K12: 718
A13: 11 | B13: Wilbert Anthonisse | C13: 195 | D13: 5 | E13: 162 | F13: 158 | G13: 193 | H13: 178 | I13: 691 | J13: 20 | K13: 711
A14: 12 | B14: Martin Koster | C14: 171 | D14: 15 | E14: 134 | F14: 170 | G14: 187 | H14: 158 | I14: 649 | J14: 60 | K14: 709
A15: 13 | B15: Marco vd Visse | C15: 176 | D15: 15 | E15: 156 | F15: 202 | G15: 168 | H15: 120 | I15: 646 | J15: 60 | K15: 706
A16: 14 | B16: Marion de Leux | C16: 170 | D16: 15 | E16: 189 | F16: 139 | G16: 163 | H16: 154 | I16: 645 | J16: 60 | K16: 705
A17: 15 | B17: Toos van Nispen | C17: 167 | D17: 15 | E17: 152 | F17: 159 | G17: 160 | H17: 173 | I17: 644 | J17: 60 | K17: 704
A18: 16 | B18: Andrea Ringelberg | C18: 157 | D18: 15 | E18: 174 | F18: 141 | G18: 115 | H18: 156 | I18: 586 | J18: 60 | K18: 646
A19: 17 | B19: Edwin van Leeuwen | C19: 145 | D19: 15 | E19: 137 | F19: 167 | G19: 157 | H19: 102 | I19: 563 | J19: 60 | K19: 623
A20: 18 | B20: Annette Koster | C20: 162 | D20: 15 | E20: 133 | F20: 135 | G20: 139 | H20: 155 | I20: 562 | J20: 60 | K20: 622
B22: Bonus: | C22: <180: 15 | E22: 180-189,99: 10 | G22: 190-199,99: 5 | I22: >200: 0
B25: Sorteer voorronde

Sheet Finale
A2: 1/16 Finale Ronde
C3: Bonus | D3: Game 1 | E3: Game 2 | F3: Totaal | I3: Bonus | J3: Game 1 | K3: Game 2 | L3: Totaal
A4: 1 | B4: =Voorronde!B3 -> Henry v. Steenis | C4: =Voorronde!D3*2 -> 0 | D4: 172 | E4: 221 | F4: =SUM(C4:E4) -> 393 | G4: 6 | H4: =Voorronde!B15 -> Marco vd Visse | I4: =Voorronde!D15*2 -> 30 | J4: 174 | K4: 176 | L4: =SUM(I4:K4) -> 380
A5: 18 | B5: =Voorronde!B20 -> Annette Koster | C5: =Voorronde!D20*2 -> 30 | D5: 139 | E5: 158 | F5: =SUM(C5:E5) -> 327 | G5: 13 | H5: =Voorronde!B8 -> Johan van Nispen | I5: =Voorronde!D8*2 -> 20 | J5: 156 | K5: 201 | L5: =SUM(I5:K5) -> 377
C7: Bonus | D7: Game 1 | E7: Game 2 | F7: Totaal | I7: Bonus | J7: Game 1 | K7: Game 2 | L7: Totaal
A8: 2 | B8: =Voorronde!B4 -> Antoinette Gijzel | C8: =Voorronde!D4*2 -> 10 | D8: 144 | E8: 205 | F8: =SUM(C8:E8) -> 359 | G8: 7 | H8: =Voorronde!B9 -> Stephan Vrijenhoek | I8: =Voorronde!D9*2 -> 0 | J8: 203 | K8: 189 | L8: =SUM(I8:K8) -> 392
A9: 17 | B9: =Voorronde!B19 -> Edwin van Leeuwen | C9: =Voorronde!D19*2 -> 30 | D9: 148 | E9: 181 | F9: =SUM(C9:E9) -> 359 | G9: 12 | H9: =Voorronde!B14 -> Martin Koster | I9: =Voorronde!D14*2 -> 30 | J9: 177 | K9: 168 | L9: =SUM(I9:K9) -> 375
C11: Bonus | D11: Game 1 | E11: Game 2 | F11: Totaal | I11: Bonus | J11: Game 1 | K11: Game 2 | L11: Totaal
A12: 3 | B12: =Voorronde!B5 -> Camil Bosman | C12: =Voorronde!D5*2 -> 0 | D12: 193 | E12: 169 | F12: =SUM(C12:E12) -> 362 | G12: 8 | H12: =Voorronde!B13 -> Wilbert Anthonisse | I12: =Voorronde!D13*2 -> 10 | J12: 174 | K12: 182 | L12: =SUM(I12:K12) -> 366
A13: 16 | B13: =Voorronde!B18 -> Andrea Ringelberg | C13: =Voorronde!D18*2 -> 30 | D13: 118 | E13: 164 | F13: =SUM(C13:E13) -> 312 | G13: 11 | H13: =Voorronde!B10 -> Guy Janssens | I13: =Voorronde!D10*2 -> 0 | J13: 202 | K13: 139 | L13: =SUM(I13:K13) -> 341
C15: Bonus | D15: Game 1 | E15: Game 2 | F15: Totaal | I15: Bonus | J15: Game 1 | K15: Game 2 | L15: Totaal
A16: 4 | B16: =Voorronde!B17 -> Toos van Nispen | C16: =Voorronde!D17*2 -> 30 | D16: 137 | E16: 169 | F16: =SUM(C16:E16) -> 336 | G16: 9 | H16: =Voorronde!B12 -> Edwin Duinhouwer | I16: =Voorronde!D12*2 -> 30 | J16: 159 | K16: 177 | L16: =SUM(I16:K16) -> 366
A17: 15 | B17: =Voorronde!B6 -> Ronald Gijzel | C17: =Voorronde!D6*2 -> 30 | D17: 135 | E17: 127 | F17: =SUM(C17:E17) -> 292 | G17: 10 | H17: =Voorronde!B11 -> Paul van Herpen | I17: =Voorronde!D11*2 -> 30 | J17: 145 | K17: 166 | L17: =SUM(I17:K17) -> 341
C19: Bonus | D19: Game 1 | E19: Game 2 | F19: Totaal
A20: 5 | B20: =Voorronde!B7 -> Kees Ringelberg | C20: =Voorronde!D7*2 -> 20 | D20: 145 | E20: 210 | F20: =SUM(C20:E20) -> 375 | I20: Door naar de volgende ronde
A21: 14 | B21: =Voorronde!B16 -> Marion de Leux | C21: =Voorronde!D16*2 -> 30 | D21: 133 | E21: 161 | F21: =SUM(C21:E21) -> 324 | I21: Beste Verliezer = bv
B23: sorteer
A27: 1/8 Finale Ronde
C28: Bonus | D28: Game 1 | E28: Game 2 | F28: Totaal | I28: Bonus | J28: Game 1 | K28: Game 2 | L28: Totaal
A29: 1 | B29: =formule!B14 -> Johan van Nispen | C29: =formule!C14 -> 20 | D29: 167 | E29: 152 | F29: =SUM(C29:E29) -> 339 | G29: 4 | H29: =formule!B6 -> Kees Ringelberg | I29: =formule!C6 -> 20 | J29: 190 | K29: 164 | L29: =SUM(I29:K29) -> 374
A30: 10 | B30: =formule!B3 -> Henry v. Steenis | C30: =formule!C3 -> 0 | D30: 191 | E30: 140 | F30: =SUM(C30:E30) -> 331 | G30: 7 | H30: =formule!B9 -> Camil Bosman | I30: =formule!C9 -> 0 | J30: 137 | K30: 192 | L30: =SUM(I30:K30) -> 329
C32: Bonus | D32: Game 1 | E32: Game 2 | F32: Totaal | I32: Bonus | J32: Game 1 | K32: Game 2 | L32: Totaal
A33: 2 | B33: =formule!B4 -> Stephan Vrijenhoek | C33: =formule!C4 -> 0 | D33: 184 | E33: 209 | F33: =SUM(C33:E33) -> 393 | G33: 5 | H33: =formule!B7 -> Wilbert Anthonisse | I33: =formule!C7 -> 10 | J33: 189 | K33: 211 | L33: =SUM(I33:K33) -> 410
A34: 9 | B34: =formule!B11 -> Toos van Nispen | C34: =formule!C11 -> 30 | D34: 145 | E34: 181 | F34: =SUM(C34:E34) -> 356 | G34: 6 | H34: =formule!B8 -> Edwin Duinhouwer | I34: =formule!C8 -> 30 | J34: 172 | K34: 129 | L34: =SUM(I34:K34) -> 331
C36: Bonus | D36: Game 1 | E36: Game 2 | F36: Totaal
A37: 3 | B37: =formule!B5 -> Marco vd Visse | C37: =formule!C5 -> 30 | D37: 210 | E37: 169 | F37: =SUM(C37:E37) -> 409
A38: 8 | B38: =formule!B10 -> Antoinette Gijzel | C38: =formule!C10 -> 10 | D38: 171 | E38: 181 | F38: =SUM(C38:E38) -> 362
B40: sorteer
A44: 1/4 Finale Ronde
C45: Bonus | D45: Game 1 | E45: Game 2 | F45: Totaal | I45: Bonus | J45: Game 1 | K45: Game 2 | L45: Totaal
A46: 1 | B46: =formule!B26 -> Wilbert Anthonisse | C46: =formule!C26 -> 10 | D46: 222 | E46: 166 | F46: =SUM(C46:E46) -> 398 | G46: 3 | H46: =formule!B29 -> Kees Ringelberg | I46: =formule!C29 -> 20 | J46: 200 | K46: 180 | L46: =SUM(I46:K46) -> 400
A47: 6 | B47: =formule!B33 -> Antoinette Gijzel | C47: =formule!C33 -> 10 | D47: 196 | E47: 190 | F47: =SUM(C47:E47) -> 396 | G47: 4 | H47: =formule!B28 -> Stephan Vrijenhoek | I47: =formule!C28 -> 0 | J47: 235 | K47: 149 | L47: =SUM(I47:K47) -> 384
C49: Bonus | D49: Game 1 | E49: Game 2 | F49: Totaal
A50: 2 | B50: =formule!B30 -> Johan van Nispen | C50: =formule!C30 -> 20 | D50: 163 | E50: 199 | F50: =SUM(C50:E50) -> 382
A51: 5 | B51: =formule!B27 -> Marco vd Visse | C51: =formule!C27 -> 30 | D51: 158 | E51: 153 | F51: =SUM(C51:E51) -> 341
B53: sorteer
A56: 1/2 Finale Ronde
C57: Bonus | D57: Game 1 | E57: Game 2 | F57: Totaal | I57: Bonus | J57: Game 1 | K57: Game 2 | L57: Totaal
A58: 1 | B58: =formule!B41 -> Kees Ringelberg | C58: =formule!C41 -> 20 | F58: =SUM(C58:E58) -> 20 | G58: 2 | H58: =formule!B42 -> Wilbert Anthonisse | I58: =formule!C42 -> 10 | L58: =SUM(I58:K58) -> 10
A59: 4 | B59: =formule!B46 -> Antoinette Gijzel | C59: =formule!C46 -> 10 | F59: =SUM(C59:E59) -> 10 | G59: 3 | H59: =formule!B43 -> Johan van Nispen | I59: =formule!C43 -> 20 | L59: =SUM(I59:K59) -> 20
B61: Troost Finale | H61: Finale
C62: Bonus | D62: Game 1 | E62: Game 2 | F62: Totaal | I62: Bonus | J62: Game 1 | K62: Game 2 | L62: Totaal
A63: 3 | B63: =H59 -> Johan van Nispen | C63: =I59 -> 20 | F63: =SUM(C63:E63) -> 20 | G63: 1 | H63: =formule!B52 -> Kees Ringelberg | I63: =formule!C52 -> 20 | L63: =SUM(I63:K63) -> 20
A64: 4 | B64: =B59 -> Antoinette Gijzel | C64: =C59 -> 10 | F64: =SUM(C64:E64) -> 10 | G64: 2 | H64: =formule!B53 -> Wilbert Anthonisse | I64: =formule!C53 -> 10 | L64: =SUM(I64:K64) -> 10

Sheet Eindstand
A2: 1 | B2: =Finale!H63 -> Kees Ringelberg | C2: 10 | D2: =formule!B37 -> Camil Bosman
A3: 2 | B3: =Finale!H64 -> Wilbert Anthonisse | C3: 11 | D3: =formule!B15 -> Martin Koster
A4: 3 | B4: =Finale!B63 -> Johan van Nispen | C4: 12 | D4: =formule!B16 -> Edwin van Leeuwen
A5: 4 | B5: =Finale!B64 -> Antoinette Gijzel | C5: 13 | D5: =formule!B17 -> Paul van Herpen
A6: 5 | B6: =formule!B47 -> Marco vd Visse | C6: 14 | D6: =formule!B18 -> Guy Janssens
A7: 6 | B7: =formule!B48 -> Stephan Vrijenhoek | C7: 15 | D7: =formule!B19 -> Annette Koster
A8: 7 | B8: =formule!B34 -> Toos van Nispen | C8: 16 | D8: =formule!B20 -> Marion de Leux
A9: 8 | B9: =formule!B35 -> Henry v. Steenis | C9: 17 | D9: =formule!B21 -> Andrea Ringelberg
A10: 9 | B10: =formule!B36 -> Edwin Duinhouwer | C10: 18 | D10: =formule!B22 -> Ronald Gijzel

Sheet formule
A1: 1/16 Finale
C2: bonus | D2: game 1 | E2: game 2 | F2: totaal
A3: 1 | B3: =Finale!B4 -> Henry v. Steenis | C3: =Finale!C4 -> 0 | D3: =Finale!D4 -> 172 | E3: =Finale!E4 -> 221 | F3: =SUM(C3:E3) -> 393
A4: 2 | B4: =Finale!H8 -> Stephan Vrijenhoek | C4: =Finale!I8 -> 0 | D4: =Finale!J8 -> 203 | E4: =Finale!K8 -> 189 | F4: 392
A5: 3 | B5: =Finale!H4 -> Marco vd Visse | C5: =Finale!I4 -> 30 | D5: =Finale!J4 -> 174 | E5: =Finale!K4 -> 176 | F5: 380
A6: 4 | B6: =Finale!B20 -> Kees Ringelberg | C6: =Finale!C20 -> 20 | D6: =Finale!D20 -> 145 | E6: =Finale!E20 -> 210 | F6: 375
A7: 5 | B7: =Finale!H12 -> Wilbert Anthonisse | C7: =Finale!I12 -> 10 | D7: =Finale!J12 -> 174 | E7: =Finale!K12 -> 182 | F7: 366
A8: 6 | B8: =Finale!H16 -> Edwin Duinhouwer | C8: =Finale!I16 -> 30 | D8: =Finale!J16 -> 159 | E8: =Finale!K16 -> 177 | F8: 366 | I8: Sorteer winnaars
A9: 7 | B9: =Finale!B12 -> Camil Bosman | C9: =Finale!C12 -> 0 | D9: =Finale!D12 -> 193 | E9: =Finale!E12 -> 169 | F9: 362
A10: 8 | B10: =Finale!B8 -> Antoinette Gijzel | C10: =Finale!C8 -> 10 | D10: =Finale!D8 -> 144 | E10: =Finale!E8 -> 205 | F10: 359
A11: 9 | B11: =Finale!B16 -> Toos van Nispen | C11: =Finale!C16 -> 30 | D11: =Finale!D16 -> 137 | E11: =Finale!E16 -> 169 | F11: 336
C13: bonus | D13: game 1 | E13: game 2 | F13: totaal
A14: 10 | B14: =Finale!H5 -> Johan van Nispen | C14: =Finale!I5 -> 20 | D14: =Finale!J5 -> 156 | E14: =Finale!K5 -> 201 | F14: =SUM(C14:E14) -> 377 | H14: Beste Verliezer
A15: 11 | B15: =Finale!H9 -> Martin Koster | C15: =Finale!I9 -> 30 | D15: =Finale!J9 -> 177 | E15: =Finale!K9 -> 168 | F15: 375
A16: 12 | B16: =Finale!B9 -> Edwin van Leeuwen | C16: =Finale!C9 -> 30 | D16: =Finale!D9 -> 148 | E16: =Finale!E9 -> 181 | F16: 359
A17: 13 | B17: =Finale!H17 -> Paul van Herpen | C17: =Finale!I17 -> 30 | D17: =Finale!J17 -> 145 | E17: =Finale!K17 -> 166 | F17: 341
A18: 14 | B18: =Finale!H13 -> Guy Janssens | C18: =Finale!I13 -> 0 | D18: =Finale!J13 -> 202 | E18: =Finale!K13 -> 139 | F18: 341 | I18: Sorteer verliezers
A19: 15 | B19: =Finale!B5 -> Annette Koster | C19: =Finale!C5 -> 30 | D19: =Finale!D5 -> 139 | E19: =Finale!E5 -> 158 | F19: 327
A20: 16 | B20: =Finale!B21 -> Marion de Leux | C20: =Finale!C21 -> 30 | D20: =Finale!D21 -> 133 | E20: =Finale!E21 -> 161 | F20: 324
A21: 17 | B21: =Finale!B13 -> Andrea Ringelberg | C21: =Finale!C13 -> 30 | D21: =Finale!D13 -> 118 | E21: =Finale!E13 -> 164 | F21: 312
A22: 18 | B22: =Finale!B17 -> Ronald Gijzel | C22: =Finale!C17 -> 30 | D22: =Finale!D17 -> 135 | E22: =Finale!E17 -> 127 | F22: 292
C24: 1/8 Finale
C25: bonus | D25: game 1 | E25: game 2 | F25: totaal
A26: 1 | B26: =Finale!H33 -> Wilbert Anthonisse | C26: =Finale!I33 -> 10 | D26: =Finale!J33 -> 189 | E26: =Finale!K33 -> 211 | F26: =SUM(C26:E26) -> 410
A27: 2 | B27: =Finale!B37 -> Marco vd Visse | C27: =Finale!C37 -> 30 | D27: =Finale!D37 -> 210 | E27: =Finale!E37 -> 169 | F27: =SUM(C27:E27) -> 409
A28: 3 | B28: =Finale!B33 -> Stephan Vrijenhoek | C28: =Finale!C33 -> 0 | D28: =Finale!D33 -> 184 | E28: =Finale!E33 -> 209 | F28: =SUM(C28:E28) -> 393 | I28: sorteer winnaars
A29: 4 | B29: =Finale!H29 -> Kees Ringelberg | C29: =Finale!I29 -> 20 | D29: =Finale!J29 -> 190 | E29: =Finale!K29 -> 164 | F29: =SUM(C29:E29) -> 374
A30: 5 | B30: =Finale!B29 -> Johan van Nispen | C30: =Finale!C29 -> 20 | D30: =Finale!D29 -> 167 | E30: =Finale!E29 -> 152 | F30: =SUM(C30:E30) -> 339
C32: bonus | D32: game 1 | E32: game 2 | F32: totaal
A33: 6 | B33: =Finale!B38 -> Antoinette Gijzel | C33: =Finale!C38 -> 10 | D33: =Finale!D38 -> 171 | E33: =Finale!E38 -> 181 | F33: =SUM(C33:E33) -> 362 | H33: Beste Verliezer
A34: 7 | B34: =Finale!B34 -> Toos van Nispen | C34: =Finale!C34 -> 30 | D34: =Finale!D34 -> 145 | E34: =Finale!E34 -> 181 | F34: =SUM(C34:E34) -> 356
A35: 8 | B35: =Finale!B30 -> Henry v. Steenis | C35: =Finale!C30 -> 0 | D35: =Finale!D30 -> 191 | E35: =Finale!E30 -> 140 | F35: =SUM(C35:E35) -> 331
A36: 9 | B36: =Finale!H34 -> Edwin Duinhouwer | C36: =Finale!I34 -> 30 | D36: =Finale!J34 -> 172 | E36: =Finale!K34 -> 129 | F36: =SUM(C36:E36) -> 331 | I36: sorteer verliezers
A37: 10 | B37: =Finale!H30 -> Camil Bosman | C37: =Finale!I30 -> 0 | D37: =Finale!J30 -> 137 | E37: =Finale!K30 -> 192 | F37: =SUM(C37:E37) -> 329
A39: 1/4 Finale
C40: bonus | D40: game 1 | E40: game 2 | F40: totaal
A41: 1 | B41: =Finale!H46 -> Kees Ringelberg | C41: =Finale!I46 -> 20 | D41: =Finale!J46 -> 200 | E41: =Finale!K46 -> 180 | F41: =SUM(C41:E41) -> 400
A42: 2 | B42: =Finale!B46 -> Wilbert Anthonisse | C42: =Finale!C46 -> 10 | D42: =Finale!D46 -> 222 | E42: =Finale!E46 -> 166 | F42: =SUM(C42:E42) -> 398
A43: 3 | B43: =Finale!B50 -> Johan van Nispen | C43: =Finale!C50 -> 20 | D43: =Finale!D50 -> 163 | E43: =Finale!E50 -> 199 | F43: =SUM(C43:E43) -> 382
I44: sorteer kwartfinale
C45: bonus | D45: game 1 | E45: game 2 | F45: totaal
A46: 4 | B46: =Finale!B47 -> Antoinette Gijzel | C46: =Finale!C47 -> 10 | D46: =Finale!D47 -> 196 | E46: =Finale!E47 -> 190 | F46: =SUM(C46:E46) -> 396 | H46: Beste Verliezer
A47: 5 | B47: =Finale!B51 -> Marco vd Visse | C47: =Finale!C51 -> 30 | D47: =Finale!D51 -> 158 | E47: =Finale!E51 -> 153 | F47: =SUM(C47:E47) -> 341
A48: 6 | B48: =Finale!H47 -> Stephan Vrijenhoek | C48: =Finale!I47 -> 0 | D48: =Finale!D59 -> 0 | E48: =Finale!E59 -> 0 | F48: =SUM(C48:E48) -> 0
A50: 1/2 Finale
C51: bonus | D51: game 1 | E51: game 2 | F51: totaal
A52: 1 | B52: =Finale!B58 -> Kees Ringelberg | C52: =Finale!C58 -> 20 | D52: =Finale!D58 -> 0 | E52: =Finale!E58 -> 0 | F52: =SUM(C52:E52) -> 20
A53: 2 | B53: =Finale!H58 -> Wilbert Anthonisse | C53: =Finale!I58 -> 10 | D53: =Finale!J58 -> 0 | E53: =Finale!K58 -> 0 | F53: =SUM(C53:E53) -> 10 | H53: Troost Finale
C55: bonus | D55: game 1 | E55: game 2 | F55: totaal
A56: 3 | B56: =Finale!H59 -> Johan van Nispen | C56: =Finale!I59 -> 20 | D56: =Finale!J59 -> 0 | E56: =Finale!K59 -> 0 | F56: =SUM(C56:E56) -> 20
A57: 4 | B57: =Finale!B59 -> Antoinette Gijzel | C57: =Finale!I47 -> 0 | D57: =Finale!D59 -> 0 | E57: =Finale!E59 -> 0 | F57: =SUM(C57:E57) -> 0 | H57: Troost Finale
B59: TroostFinale
C60: bonus | D60: game 1 | E60: game 2 | F60: totaal
A61: 3 | B61: =Finale!B59 -> Antoinette Gijzel | C61: =Finale!C59 -> 10 | D61: =Finale!D64 -> 0 | E61: =Finale!E64 -> 0 | F61: =SUM(C61:E61) -> 10
A62: 4 | B62: =Finale!H59 -> Johan van Nispen | C62: =Finale!I59 -> 20 | D62: =Finale!D63 -> 0 | E62: =Finale!E63 -> 0 | F62: =SUM(C62:E62) -> 20
B64: Finale
C65: bonus | D65: game 1 | E65: game 2 | F65: totaal
A66: 1 | B66: =Finale!H63 -> Kees Ringelberg | C66: =Finale!I63 -> 20 | D66: =Finale!J63 -> 0 | E66: =Finale!K63 -> 0 | F66: =SUM(C66:E66) -> 20
A67: 2 | B67: =Finale!H64 -> Wilbert Anthonisse | C67: =Finale!I64 -> 10 | D67: =Finale!J64 -> 0 | E67: =Finale!K64 -> 0 | F67: =SUM(C67:E67) -> 10

Sheet Score Briefjes
C1: Bonus/gm | D1: Game 1 | E1: Game 2 | F1: Game 3 | G1: Game 4 | H1: Bonus/tot | I1: Totaal
A2: Martin | C2: 15 | H2: 60
A3: Koster
A4: 1/16 Finale | F4: 1/8 Finale
A5: Game 1 | B5: Game 2 | C5: Bonus | D5: Tegenst. | F5: Game 1 | G5: Game 2 | H5: Bonus | I5: Tegenst.
C6: 30 | H6: 30
A8: 1/4 Finale | F8: 1/2 Finale | K8: Finale
A9: Game 1 | B9: Game 2 | C9: Bonus | D9: Tegenst. | F9: Game 1 | G9: Game 2 | H9: Bonus | I9: Tegenst. | K9: Game 1 | L9: Game 2 | M9: Bonus | N9: Tegenst.
C10: 30 | H10: 30 | M10: 30
C14: Bonus/gm | D14: Game 1 | E14: Game 2 | F14: Game 3 | G14: Game 4 | H14: Bonus/tot | I14: Totaal
A15: Annette | C15: 15 | H15: 60
A16: Koster
A17: 1/16 Finale | F17: 1/8 Finale
A18: Game 1 | B18: Game 2 | C18: Bonus | D18: Tegenst. | F18: Game 1 | G18: Game 2 | H18: Bonus | I18: Tegenst.
C19: 30 | H19: 30
A21: 1/4 Finale | F21: 1/2 Finale | K21: Finale
A22: Game 1 | B22: Game 2 | C22: Bonus | D22: Tegenst. | F22: Game 1 | G22: Game 2 | H22: Bonus | I22: Tegenst. | K22: Game 1 | L22: Game 2 | M22: Bonus | N22: Tegenst.
C23: 30 | H23: 30 | M23: 30
C27: Bonus/gm | D27: Game 1 | E27: Game 2 | F27: Game 3 | G27: Game 4 | H27: Bonus/tot | I27: Totaal
A28: Antoinette | C28: 5 | H28: 20
A29: Gijzel-Schijf
A30: 1/16 Finale | F30: 1/8 Finale
A31: Game 1 | B31: Game 2 | C31: Bonus | D31: Tegenst. | F31: Game 1 | G31: Game 2 | H31: Bonus | I31: Tegenst.
C32: 10 | H32: 10
A34: 1/4 Finale | F34: 1/2 Finale | K34: Finale
A35: Game 1 | B35: Game 2 | C35: Bonus | D35: Tegenst. | F35: Game 1 | G35: Game 2 | H35: Bonus | I35: Tegenst. | K35: Game 1 | L35: Game 2 | M35: Bonus | N35: Tegenst.
C36: 10 | H36: 10 | M36: 10
C39: Bonus/gm | D39: Game 1 | E39: Game 2 | F39: Game 3 | G39: Game 4 | H39: Bonus/tot | I39: Totaal
A40: Ronald | C40: 15 | H40: 60
A41: Gijzel
A42: 1/16 Finale | F42: 1/8 Finale
A43: Game 1 | B43: Game 2 | C43: Bonus | D43: Tegenst. | F43: Game 1 | G43: Game 2 | H43: Bonus | I43: Tegenst.
C44: 30 | H44: 30
A46: 1/4 Finale | F46: 1/2 Finale | K46: Finale
A47: Game 1 | B47: Game 2 | C47: Bonus | D47: Tegenst. | F47: Game 1 | G47: Game 2 | H47: Bonus | I47: Tegenst. | K47: Game 1 | L47: Game 2 | M47: Bonus | N47: Tegenst.
C48: 30 | H48: 30 | M48: 30
C52: Bonus/gm | D52: Game 1 | E52: Game 2 | F52: Game 3 | G52: Game 4 | H52: Bonus/tot | I52: Totaal
A53: Johan | C53: 10 | H53: 40
A54: van Nispen
A55: 1/16 Finale | F55: 1/8 Finale
A56: Game 1 | B56: Game 2 | C56: Bonus | D56: Tegenst. | F56: Game 1 | G56: Game 2 | H56: Bonus | I56: Tegenst.
C57: 20 | H57: 20
A59: 1/4 Finale | F59: 1/2 Finale | K59: Finale
A60: Game 1 | B60: Game 2 | C60: Bonus | D60: Tegenst. | F60: Game 1 | G60: Game 2 | H60: Bonus | I60: Tegenst. | K60: Game 1 | L60: Game 2 | M60: Bonus | N60: Tegenst.
C61: 20 | H61: 20 | M61: 20
C65: Bonus/gm | D65: Game 1 | E65: Game 2 | F65: Game 3 | G65: Game 4 | H65: Bonus/tot | I65: Totaal
A66: Toos | C66: 15 | H66: 60
A67: van Nispen
A68: 1/16 Finale | F68: 1/8 Finale
A69: Game 1 | B69: Game 2 | C69: Bonus | D69: Tegenst. | F69: Game 1 | G69: Game 2 | H69: Bonus | I69: Tegenst.
C70: 30 | H70: 30
A72: 1/4 Finale | F72: 1/2 Finale | K72: Finale
A73: Game 1 | B73: Game 2 | C73: Bonus | D73: Tegenst. | F73: Game 1 | G73: Game 2 | H73: Bonus | I73: Tegenst. | K73: Game 1 | L73: Game 2 | M73: Bonus | N73: Tegenst.
C74: 30 | H74: 30 | M74: 30
C77: Bonus/gm | D77: Game 1 | E77: Game 2 | F77: Game 3 | G77: Game 4 | H77: Bonus/tot | I77: Totaal
A78: Marion | C78: 15 | H78: 60
A79: de Leux
A80: 1/16 Finale | F80: 1/8 Finale
A81: Game 1 | B81: Game 2 | C81: Bonus | D81: Tegenst. | F81: Game 1 | G81: Game 2 | H81: Bonus | I81: Tegenst.
C82: 30 | H82: 30
A84: 1/4 Finale | F84: 1/2 Finale | K84: Finale
A85: Game 1 | B85: Game 2 | C85: Bonus | D85: Tegenst. | F85: Game 1 | G85: Game 2 | H85: Bonus | I85: Tegenst. | K85: Game 1 | L85: Game 2 | M85: Bonus | N85: Tegenst.
C86: 30 | H86: 30 | M86: 30
C90: Bonus/gm | D90: Game 1 | E90: Game 2 | F90: Game 3 | G90: Game 4 | H90: Bonus/tot | I90: Totaal
A91: Wilbert Anthonisse | C91: 5 | H91: 20
A92: Achternaam
A93: 1/16 Finale | F93: 1/8 Finale
A94: Game 1 | B94: Game 2 | C94: Bonus | D94: Tegenst. | F94: Game 1 | G94: Game 2 | H94: Bonus | I94: Tegenst.
C95: 10 | H95: 10
A97: 1/4 Finale | F97: 1/2 Finale | K97: Finale
A98: Game 1 | B98: Game 2 | C98: Bonus | D98: Tegenst. | F98: Game 1 | G98: Game 2 | H98: Bonus | I98: Tegenst. | K98: Game 1 | L98: Game 2 | M98: Bonus | N98: Tegenst.
C99: 10 | H99: 10 | M99: 10
C103: Bonus/gm | D103: Game 1 | E103: Game 2 | F103: Game 3 | G103: Game 4 | H103: Bonus/tot | I103: Totaal
A104: Edwin | C104: 15 | H104: 60
A105: Duinhouwer
A106: 1/16 Finale | F106: 1/8 Finale
A107: Game 1 | B107: Game 2 | C107: Bonus | D107: Tegenst. | F107: Game 1 | G107: Game 2 | H107: Bonus | I107: Tegenst.
C108: 30 | H108: 30
A110: 1/4 Finale | F110: 1/2 Finale | K110: Finale
A111: Game 1 | B111: Game 2 | C111: Bonus | D111: Tegenst. | F111: Game 1 | G111: Game 2 | H111: Bonus | I111: Tegenst. | K111: Game 1 | L111: Game 2 | M111: Bonus | N111: Tegenst.
C112: 30 | H112: 30 | M112: 30
C115: Bonus/gm | D115: Game 1 | E115: Game 2 | F115: Game 3 | G115: Game 4 | H115: Bonus/tot | I115: Totaal
A116: Stephan | C116: 0 | H116: 0
A117: Vrijenhoek
A118: 1/16 Finale | F118: 1/8 Finale
A119: Game 1 | B119: Game 2 | C119: Bonus | D119: Tegenst. | F119: Game 1 | G119: Game 2 | H119: Bonus | I119: Tegenst.
C120: 0 | H120: 0
A122: 1/4 Finale | F122: 1/2 Finale | K122: Finale
A123: Game 1 | B123: Game 2 | C123: Bonus | D123: Tegenst. | F123: Game 1 | G123: Game 2 | H123: Bonus | I123: Tegenst. | K123: Game 1 | L123: Game 2 | M123: Bonus | N123: Tegenst.
C124: 0 | H124: 0 | M124: 0
C128: Bonus/gm | D128: Game 1 | E128: Game 2 | F128: Game 3 | G128: Game 4 | H128: Bonus/tot | I128: Totaal
A129: Henry | C129: 0 | H129: 0
A130: van Steenis
A131: 1/16 Finale | F131: 1/8 Finale
A132: Game 1 | B132: Game 2 | C132: Bonus | D132: Tegenst. | F132: Game 1 | G132: Game 2 | H132: Bonus | I132: Tegenst.
C133: 0 | H133: 0
A135: 1/4 Finale | F135: 1/2 Finale | K135: Finale
A136: Game 1 | B136: Game 2 | C136: Bonus | D136: Tegenst. | F136: Game 1 | G136: Game 2 | H136: Bonus | I136: Tegenst. | K136: Game 1 | L136: Game 2 | M136: Bonus | N136: Tegenst.
C137: 0 | H137: 0 | M137: 0
C141: Bonus/gm | D141: Game 1 | E141: Game 2 | F141: Game 3 | G141: Game 4 | H141: Bonus/tot | I141: Totaal
A142: Guy | C142: 0 | H142: 0
A143: Janssens
A144: 1/16 Finale | F144: 1/8 Finale
A145: Game 1 | B145: Game 2 | C145: Bonus | D145: Tegenst. | F145: Game 1 | G145: Game 2 | H145: Bonus | I145: Tegenst.
C146: 0 | H146: 0
A148: 1/4 Finale | F148: 1/2 Finale | K148: Finale
A149: Game 1 | B149: Game 2 | C149: Bonus | D149: Tegenst. | F149: Game 1 | G149: Game 2 | H149: Bonus | I149: Tegenst. | K149: Game 1 | L149: Game 2 | M149: Bonus | N149: Tegenst.
C150: 0 | H150: 0 | M150: 0
C153: Bonus/gm | D153: Game 1 | E153: Game 2 | F153: Game 3 | G153: Game 4 | H153: Bonus/tot | I153: Totaal
A154: Kees | C154: 10 | H154: 40
A155: Ringelberg
A156: 1/16 Finale | F156: 1/8 Finale
A157: Game 1 | B157: Game 2 | C157: Bonus | D157: Tegenst. | F157: Game 1 | G157: Game 2 | H157: Bonus | I157: Tegenst.
C158: 20 | H158: 20
A160: 1/4 Finale | F160: 1/2 Finale | K160: Finale
A161: Game 1 | B161: Game 2 | C161: Bonus | D161: Tegenst. | F161: Game 1 | G161: Game 2 | H161: Bonus | I161: Tegenst. | K161: Game 1 | L161: Game 2 | M161: Bonus | N161: Tegenst.
C162: 20 | H162: 20 | M162: 20
C166: Bonus/gm | D166: Game 1 | E166: Game 2 | F166: Game 3 | G166: Game 4 | H166: Bonus/tot | I166: Totaal
A167: Andrea | C167: 15 | H167: 60
A168: Ringelberg
A169: 1/16 Finale | F169: 1/8 Finale
A170: Game 1 | B170: Game 2 | C170: Bonus | D170: Tegenst. | F170: Game 1 | G170: Game 2 | H170: Bonus | I170: Tegenst.
C171: 30 | H171: 30
A173: 1/4 Finale | F173: 1/2 Finale | K173: Finale
A174: Game 1 | B174: Game 2 | C174: Bonus | D174: Tegenst. | F174: Game 1 | G174: Game 2 | H174: Bonus | I174: Tegenst. | K174: Game 1 | L174: Game 2 | M174: Bonus | N174: Tegenst.
C175: 30 | H175: 30 | M175: 30
C179: Bonus/gm | D179: Game 1 | E179: Game 2 | F179: Game 3 | G179: Game 4 | H179: Bonus/tot | I179: Totaal
A180: Paul | C180: 15 | H180: 60
A181: van Herpen
A182: 1/16 Finale | F182: 1/8 Finale
A183: Game 1 | B183: Game 2 | C183: Bonus | D183: Tegenst. | F183: Game 1 | G183: Game 2 | H183: Bonus | I183: Tegenst.
C184: 30 | H184: 30
A186: 1/4 Finale | F186: 1/2 Finale | K186: Finale
A187: Game 1 | B187: Game 2 | C187: Bonus | D187: Tegenst. | F187: Game 1 | G187: Game 2 | H187: Bonus | I187: Tegenst. | K187: Game 1 | L187: Game 2 | M187: Bonus | N187: Tegenst.
C188: 30 | H188: 30 | M188: 30
C191: Bonus/gm | D191: Game 1 | E191: Game 2 | F191: Game 3 | G191: Game 4 | H191: Bonus/tot | I191: Totaal
A192: Edwin | C192: 15 | H192: 60
A193: van Leeuwen
A194: 1/16 Finale | F194: 1/8 Finale
A195: Game 1 | B195: Game 2 | C195: Bonus | D195: Tegenst. | F195: Game 1 | G195: Game 2 | H195: Bonus | I195: Tegenst.
C196: 30 | H196: 30
A198: 1/4 Finale | F198: 1/2 Finale | K198: Finale
A199: Game 1 | B199: Game 2 | C199: Bonus | D199: Tegenst. | F199: Game 1 | G199: Game 2 | H199: Bonus | I199: Tegenst. | K199: Game 1 | L199: Game 2 | M199: Bonus | N199: Tegenst.
C200: 30 | H200: 30 | M200: 30
C204: Bonus/gm | D204: Game 1 | E204: Game 2 | F204: Game 3 | G204: Game 4 | H204: Bonus/tot | I204: Totaal
A205: Marco | C205: 15 | H205: 60
A206: vd Visse
A207: 1/16 Finale | F207: 1/8 Finale
A208: Game 1 | B208: Game 2 | C208: Bonus | D208: Tegenst. | F208: Game 1 | G208: Game 2 | H208: Bonus | I208: Tegenst.
C209: 30 | H209: 30
A211: 1/4 Finale | F211: 1/2 Finale | K211: Finale
A212: Game 1 | B212: Game 2 | C212: Bonus | D212: Tegenst. | F212: Game 1 | G212: Game 2 | H212: Bonus | I212: Tegenst. | K212: Game 1 | L212: Game 2 | M212: Bonus | N212: Tegenst.
C213: 30 | H213: 30 | M213: 30
C217: Bonus/gm | D217: Game 1 | E217: Game 2 | F217: Game 3 | G217: Game 4 | H217: Bonus/tot | I217: Totaal
A218: Camil | C218: 0 | H218: 0
A219: Bosman
A220: 1/16 Finale | F220: 1/8 Finale
A221: Game 1 | B221: Game 2 | C221: Bonus | D221: Tegenst. | F221: Game 1 | G221: Game 2 | H221: Bonus | I221: Tegenst.
C222: 0 | H222: 0
A224: 1/4 Finale | F224: 1/2 Finale | K224: Finale
A225: Game 1 | B225: Game 2 | C225: Bonus | D225: Tegenst. | F225: Game 1 | G225: Game 2 | H225: Bonus | I225: Tegenst. | K225: Game 1 | L225: Game 2 | M225: Bonus | N225: Tegenst.
C226: 0 | H226: 0 | M226: 0
